bitfinex/quotes_BTCUSD_20251208
["timestamp","ask_amount","ask_price","bid_price","bid_amount"]
[1765200973600,0.00039011,91637.0,91636.0,2.20576131]
[1765200974402,0.00039011,91637.0,91636.0,0.7281206]
[1765200974602,0.00039011,91637.0,91636.0,0.66956131]
[1765200975380,0.00039011,91637.0,91636.0,0.66556131]
[1765200975784,0.00039011,91637.0,91636.0,0.66056131]
[1765200976733,0.00039011,91637.0,91636.0,0.66256131]
[1765200977245,0.00039011,91637.0,91636.0,0.66456131]
[1765200977448,0.00039011,91637.0,91636.0,0.7231206]
[1765200977660,0.00039011,91637.0,91636.0,0.66456131]
[1765200978697,0.00039011,91637.0,91636.0,0.63180727]
[1765200980100,0.00039011,91637.0,91636.0,0.6096277]
[1765200980317,0.00039011,91637.0,91636.0,0.34550069]
[1765200980514,0.00039011,91637.0,91636.0,0.2866277]
[1765200985696,0.00039011,91637.0,91636.0,0.6096277]
[1765200985926,0.01090881,91669.0,91666.0,0.01090917]
[1765200986234,0.01101096,91669.0,91666.0,0.25146041]
[1765200986547,0.00010215,91669.0,91668.0,0.28052821]
[1765200986839,0.22904763,91684.0,91679.0,0.01090762]
[1765200987043,0.01090821,91674.0,91669.0,0.03461]
[1765200987200,0.01090833,91673.0,91670.0,0.03461]
[1765200987410,0.2181696,91672.0,91670.0,0.03461]
[1765200987609,0.2181715,91671.0,91670.0,0.03461]
[1765200987910,0.21817626,91669.0,91668.0,0.0178]
[1765200988110,0.21817626,91669.0,91668.0,0.04017]
[1765200988313,0.22017626,91669.0,91668.0,0.07478]
[1765200988766,0.21817626,91669.0,91668.0,0.07478]
[1765200989144,0.22417626,91669.0,91668.0,0.04017]
[1765200989579,0.22217626,91669.0,91668.0,0.04017]
[1765200989980,0.22417626,91669.0,91668.0,0.04017]
[1765200990276,0.22017626,91669.0,91668.0,0.04017]
[1765200990658,0.22417626,91669.0,91668.0,0.04017]
[1765200990872,0.01090976,91661.0,91658.0,0.0178]
[1765200991072,0.21820006,91659.0,91658.0,0.0178]
[1765200991396,0.21820006,91659.0,91658.0,0.05241]
[1765200991543,0.21820006,91659.0,91658.0,0.07478]
[1765200992386,0.22020006,91659.0,91658.0,0.07478]
[1765200993886,0.22020006,91659.0,91658.0,0.04017]
[1765200994265,0.22020006,91659.0,91658.0,0.07478]
[1765200995774,0.27998299,91659.0,91658.0,0.04017]
[1765200996366,0.27998299,91659.0,91658.0,0.07478]
[1765200997368,0.22020006,91659.0,91658.0,0.07478]
[1765201000523,0.002,91659.0,91658.0,0.31677488]
[1765201000810,0.01090786,91677.0,91673.0,0.22907499]
[1765201001010,0.01724,91693.0,91682.0,0.21814524]
[1765201001011,0.01090667,91687.0,91682.0,0.21814524]
[1765201001254,0.01090667,91687.0,91683.0,0.04017]
[1765201001750,0.01090667,91687.0,91683.0,0.07478]
[1765201002252,0.01090607,91692.0,91683.0,0.07639287]
[1765201002481,0.01090619,91691.0,91683.0,0.07639287]
[1765201002604,0.2290282,91692.0,91683.0,0.07639287]
[1765201002817,0.01090619,91691.0,91683.0,0.07639287]
[1765201003238,0.01090655,91688.0,91683.0,0.07639287]
[1765201003885,0.01090655,91688.0,91683.0,0.09857244]
[1765201004371,0.00110213,91684.0,91683.0,0.09957244]
[1765201004519,0.00010213,91684.0,91683.0,0.09957244]
[1765201004721,0.00010213,91684.0,91683.0,0.10057244]
[1765201007525,0.00010213,91684.0,91683.0,0.07839287]
[1765201010019,0.00010213,91684.0,91683.0,0.29653581]
[1765201010437,0.00010213,91684.0,91683.0,0.07839287]
[1765201011020,0.00010213,91684.0,91683.0,0.29653581]
[1765201013128,0.00010213,91684.0,91683.0,0.31871538]
[1765201015332,0.01003014,91697.0,91696.0,0.02217957]
[1765201015536,0.01003014,91697.0,91696.0,0.02380175]
[1765201015756,0.01090536,91698.0,91697.0,0.02218888]
[1765201015960,0.01090536,91698.0,91697.0,0.02232]
[1765201016294,0.22901023,91699.0,91697.0,0.0569]
[1765201016498,0.22899531,91705.0,91699.0,0.2181028]
[1765201016639,0.22900192,91703.0,91702.0,0.02232]
[1765201017043,0.22900192,91703.0,91702.0,0.0569]
[1765201017858,0.23100192,91703.0,91702.0,0.0569]
[1765201018064,0.23400192,91703.0,91702.0,0.0569]
[1765201018465,0.23200192,91703.0,91702.0,0.0569]
[1765201020710,0.21810964,91697.0,91696.0,0.01758]
[1765201020913,0.21810726,91698.0,91696.0,0.01758]
[1765201021116,0.21810726,91698.0,91697.0,0.02083]
[1765201021552,0.21810726,91698.0,91697.0,0.05247]
[1765201021709,0.21810261,91700.0,91698.0,0.21810726]
[1765201021917,0.21810261,91700.0,91698.0,0.03164]
[1765201022117,0.21810964,91697.0,91696.0,0.01758]
[1765201022510,0.21810964,91697.0,91696.0,0.03841]
[1765201022710,0.22901012,91699.0,91696.0,0.28816153]
[1765201022883,0.22901012,91699.0,91698.0,0.02083]
[1765201023085,0.22901012,91699.0,91698.0,0.05247]
[1765201023528,0.01090524,91699.0,91698.0,0.05247]
[1765201023861,0.23101012,91699.0,91698.0,0.05247]
[1765201023986,0.23001012,91699.0,91698.0,0.05247]
[1765201024433,0.23201012,91699.0,91698.0,0.05247]
[1765201029291,0.003,91699.0,91698.0,0.05247]
[1765201029494,0.003,91699.0,91698.0,0.27219013]
[1765201029652,0.003,91699.0,91698.0,0.28943013]
[1765201030382,0.002,91699.0,91698.0,0.31161901]
[1765201030782,0.01090239,91723.0,91719.0,0.21805636]
[1765201030953,0.01101934,91723.0,91721.0,0.0172]
[1765201031148,0.01101934,91723.0,91722.0,0.03803]
[1765201031348,0.00011695,91723.0,91722.0,0.06967]
[1765201032277,0.21816476,91723.0,91722.0,0.06967]
[1765201032479,0.21816476,91723.0,91721.0,0.0172]
[1765201032704,0.21809537,91703.0,91702.0,0.01694]
[1765201033572,0.21809537,91703.0,91702.0,0.03954]
[1765201033773,0.21809537,91703.0,91702.0,0.07163]
[1765201034008,0.21809359,91704.0,91702.0,0.07263]
[1765201034188,0.21809359,91704.0,91703.0,0.05469]
[1765201034793,0.21809359,91704.0,91702.0,0.002]
[1765201034794,0.21809537,91703.0,91702.0,0.002]
[1765201035411,0.21809537,91703.0,91702.0,0.001]
[1765201035611,0.21809537,91703.0,91702.0,0.002]
[1765201035834,0.22826799,91703.0,91702.0,0.001]
[1765201036035,0.22826799,91703.0,91702.0,0.002]
[1765201036196,0.22826799,91703.0,91702.0,0.001]
[1765201036406,0.22826799,91703.0,91687.0,0.03209]
[1765201036407,0.21811677,91694.0,91687.0,0.03209]
[1765201036805,0.21811677,91694.0,91693.0,0.03954]
[1765201037882,0.22211677,91694.0,91693.0,0.03954]
[1765201038624,0.22311677,91694.0,91693.0,0.03954]
[1765201039022,0.22311677,91694.0,91693.0,0.07163]
[1765201039323,0.005,91694.0,91693.0,0.07163]
[1765201039527,0.005,91694.0,91693.0,0.28974915]
[1765201039764,0.005,91694.0,91693.0,0.29136202]
[1765201039925,0.01090393,91710.0,91703.0,0.01090476]
[1765201040123,0.00011693,91710.0,91707.0,0.01090429]
[1765201040511,0.00011693,91710.0,91709.0,0.2576211]
[1765201040713,0.00011693,91710.0,91709.0,0.25923397]
[1765201040913,0.00011693,91710.0,91709.0,0.29132397]
[1765201042596,0.00011693,91710.0,91709.0,0.29232397]
[1765201043198,0.00011693,91710.0,91709.0,0.29332397]
[1765201044340,0.00011693,91710.0,91709.0,0.33275285]
[1765201044495,0.00011693,91710.0,91709.0,0.26123397]
[1765201044700,0.00011693,91710.0,91709.0,0.29332397]
[1765201044895,0.21819565,91710.0,91709.0,0.07524287]
[1765201045096,0.21819565,91710.0,91709.0,0.002]
[1765201045265,0.21819565,91710.0,91709.0,0.001]
[1765201045499,0.21809775,91702.0,91701.0,0.01694]
[1765201045697,0.21809775,91702.0,91701.0,0.03954]
[1765201045951,0.21809775,91702.0,91701.0,0.07163]
[1765201046714,0.21809775,91702.0,91701.0,0.07263]
[1765201047413,0.21809775,91702.0,91701.0,0.07463]
[1765201050567,0.21809601,91703.0,91701.0,0.07463]
[1765201050842,0.21809601,91703.0,91702.0,0.05469]
[1765201052666,0.21809601,91703.0,91702.0,0.05669]
[1765201055878,0.21809601,91703.0,91702.0,0.05469]
[1765201056284,0.21809601,91703.0,91702.0,0.05569]
[1765201056480,0.21809601,91703.0,91702.0,0.001]
[1765201056684,0.23533601,91703.0,91702.0,0.001]
[1765201056954,0.2677118,91703.0,91702.0,0.001]
[1765201057150,0.33023479,91703.0,91702.0,0.001]
[1765201057350,0.73023479,91703.0,91702.0,0.001]
[1765201057564,0.7080388,91703.0,91702.0,0.001]
[1765201057739,0.6677118,91703.0,91702.0,0.001]
[1765201057933,0.21812629,91690.0,91689.0,0.03209]
[1765201058362,0.21813581,91686.0,91684.0,0.03209]
[1765201058556,0.21813581,91686.0,91679.0,0.01694]
[1765201058802,0.21813581,91686.0,91685.0,0.03954]
[1765201059044,0.21815008,91680.0,91679.0,0.01694]
[1765201059246,0.21815008,91680.0,91673.0,0.01694]
[1765201059247,0.21816436,91674.0,91673.0,0.01694]
[1765201059599,0.21816436,91674.0,91673.0,0.03954]
[1765201059964,0.01090786,91677.0,91673.0,0.0841512]
[1765201060172,0.21816436,91674.0,91673.0,0.050745]
[1765201060414,0.21816436,91674.0,91673.0,0.018655]
[1765201060590,0.21816436,91674.0,91673.0,0.041255]
[1765201060936,0.21816436,91674.0,91673.0,0.073345]
[1765201061433,0.21816436,91674.0,91673.0,0.042255]
[1765201061837,0.21816436,91674.0,91673.0,0.041255]
[1765201062064,0.22316436,91674.0,91673.0,0.041255]
[1765201062216,0.22316436,91674.0,91673.0,0.074025]
[1765201065558,0.005,91674.0,91673.0,0.074025]
[1765201065747,0.22316436,91674.0,91673.0,0.074025]
[1765201067523,0.22316436,91674.0,91673.0,0.01704213]
[1765201068380,0.22316436,91674.0,91673.0,0.00010213]
[1765201070473,0.22316436,91674.0,91673.0,0.02178213]
[1765201070661,0.22316436,91674.0,91673.0,0.05455213]
[1765201072576,0.22316436,91674.0,91673.0,0.02178213]
[1765201073184,0.22316436,91674.0,91673.0,0.05455213]
[1765201080718,0.005,91674.0,91673.0,0.27433174]
[1765201081730,0.005,91674.0,91673.0,0.056165]
[1765201081931,0.22316436,91674.0,91673.0,0.056165]
[1765201083784,0.22316436,91674.0,91673.0,0.02178213]
[1765201083918,0.22316436,91674.0,91673.0,0.00010213]
[1765201084903,0.24536035,91674.0,91673.0,0.00010213]
[1765201085106,0.22316436,91674.0,91673.0,0.00010213]
[1765201085971,0.23334526,91674.0,91673.0,0.00010213]
[1765201096041,0.2555533,91674.0,91673.0,0.00010213]
[1765201097297,0.23335731,91674.0,91673.0,0.00010213]
[1765201099490,0.23335731,91674.0,91673.0,0.01594213]
[1765201099694,0.23335731,91674.0,91673.0,0.06740213]
[1765201100797,0.005,91674.0,91673.0,0.069015]
[1765201101396,0.22316436,91674.0,91673.0,0.069015]
[1765201102450,0.005,91674.0,91673.0,0.069015]
[1765201102653,0.22316436,91674.0,91673.0,0.069015]
[1765201105351,0.005,91674.0,91673.0,0.069015]
[1765201105752,0.22316436,91674.0,91673.0,0.069015]
[1765201107677,0.005,91674.0,91673.0,0.069015]
[1765201108000,0.005,91674.0,91673.0,0.30937062]
[1765201109356,0.22316436,91674.0,91673.0,0.069015]
[1765201109925,0.22316436,91674.0,91673.0,0.037865]
[1765201110308,0.22316436,91674.0,91673.0,0.00010213]
[1765201110519,0.28294729,91674.0,91673.0,0.00010213]
[1765201110829,0.29313832,91674.0,91673.0,0.00010213]
[1765201111127,0.2931387,91674.0,91673.0,0.00010213]
[1765201112106,0.71533399,91674.0,91673.0,0.00010213]
[1765201112935,0.75566099,91674.0,91673.0,0.00010213]
[1765201113137,1.09585698,91674.0,91673.0,0.00010213]
[1765201113500,1.10085698,91674.0,91673.0,0.00010213]
[1765201113720,1.09785698,91674.0,91673.0,0.00010213]
[1765201113946,1.09785401,91674.0,91673.0,0.00010213]
[1765201114150,1.09985401,91674.0,91673.0,0.00010213]
[1765201114360,1.10285401,91674.0,91673.0,0.00110213]
[1765201114812,1.11385401,91674.0,91673.0,0.00110213]
[1765201115006,1.10685401,91674.0,91673.0,0.00010213]
[1765201115153,1.10685401,91674.0,91673.0,0.00110213]
[1765201115154,1.11285173,91674.0,91673.0,0.00110213]
[1765201119339,1.12545815,91674.0,91673.0,0.00110213]
[1765201119557,1.11285173,91674.0,91673.0,0.00110213]
[1765201119792,1.11285173,91674.0,91640.0,0.01584]
[1765201119793,0.21824292,91641.0,91640.0,0.01584]
[1765201120015,0.21824292,91641.0,91640.0,0.00010215]
[1765201120260,0.27802585,91641.0,91640.0,0.00010215]
[1765201121233,0.27902585,91641.0,91640.0,0.00010215]
[1765201123922,0.29626585,91641.0,91640.0,0.00010215]
[1765201126926,0.27902585,91641.0,91640.0,0.00010215]
[1765201129142,0.27902585,91641.0,91640.0,0.01925215]
[1765201130324,0.27902585,91641.0,91640.0,0.00010215]
[1765201130959,0.30122184,91641.0,91640.0,0.00010215]
[1765201131332,0.34154884,91641.0,91640.0,0.00010215]
[1765201131529,0.68674483,91641.0,91640.0,0.00010215]
[1765201131729,0.72965605,91641.0,91640.0,0.00010215]
[1765201131934,0.72865605,91641.0,91640.0,0.00010215]
[1765201132134,0.73065605,91641.0,91640.0,0.00010215]
[1765201132753,0.72865605,91641.0,91640.0,0.00410215]
[1765201132954,0.72865605,91641.0,91640.0,0.00010215]
[1765201132955,0.73065605,91641.0,91640.0,0.00010215]
[1765201133372,0.72051096,91641.0,91640.0,0.00310215]
[1765201133576,0.7306535,91641.0,91640.0,0.00310215]
[1765201134635,1.1306535,91641.0,91640.0,0.00310215]
[1765201137035,1.20332067,91641.0,91640.0,0.00310215]
[1765201137282,1.20332067,91641.0,91640.0,0.00010215]
[1765201137535,1.1346535,91641.0,91640.0,0.00010215]
[1765201137935,1.07969138,91641.0,91640.0,0.00010215]
[1765201138074,1.09693138,91641.0,91640.0,0.00010215]
[1765201138269,1.11230138,91641.0,91640.0,0.00010215]
[1765201138469,1.13249737,91641.0,91640.0,0.00010215]
[1765201138812,1.13749737,91641.0,91640.0,0.00110215]
[1765201140426,1.02016839,91641.0,91640.0,0.00110215]
[1765201140764,1.03740839,91641.0,91640.0,0.00110215]
[1765201141137,1.04236438,91641.0,91640.0,0.00110215]
[1765201141435,1.05960438,91641.0,91640.0,0.00110215]
[1765201142290,1.02016839,91641.0,91640.0,0.00110215]
[1765201142492,0.71440839,91641.0,91640.0,0.02018215]
[1765201143040,0.71440839,91641.0,91640.0,0.00110215]
[1765201144170,0.69716839,91641.0,91640.0,0.00110215]
[1765201144312,0.71440839,91641.0,91640.0,0.00110215]
[1765201144689,0.73660438,91641.0,91640.0,0.00110215]
[1765201144899,0.79912737,91641.0,91640.0,0.00110215]
[1765201145094,1.12212737,91641.0,91640.0,0.00110215]
[1765201148694,1.12215556,91641.0,91640.0,0.00110215]
[1765201152681,1.12215861,91641.0,91640.0,0.00110215]
[1765201157607,1.13752861,91641.0,91640.0,0.00110215]
[1765201158850,1.12028861,91641.0,91640.0,0.00110215]
[1765201159015,0.72215861,91641.0,91640.0,0.00110215]
[1765201159625,0.71198483,91641.0,91640.0,0.00110215]
[1765201159820,0.72216681,91641.0,91640.0,0.00110215]
[1765201160702,0.75146819,91641.0,91640.0,0.00110215]
[1765201161310,0.72216681,91641.0,91640.0,0.00110215]
[1765201162058,0.72217202,91641.0,91640.0,0.00110215]
[1765201162253,0.21831201,91612.0,91611.0,0.01042565]
[1765201162468,0.21831201,91612.0,91611.0,0.01081576]
[1765201162642,0.21831201,91612.0,91611.0,0.05565576]
[1765201163403,0.27809494,91612.0,91611.0,0.00039011]
[1765201163521,0.28827971,91612.0,91611.0,0.00039011]
[1765201164439,0.28927971,91612.0,91611.0,0.00239011]
[1765201164640,0.28927971,91612.0,91611.0,0.01239011]
[1765201164839,0.28827971,91612.0,91611.0,0.01039011]
[1765201165056,0.28827971,91612.0,91611.0,0.00039011]
[1765201165466,0.28827971,91612.0,91611.0,0.00639011]
[1765201168157,0.27809494,91612.0,91611.0,0.00639011]
[1765201168361,0.310465,91612.0,91611.0,0.00639011]
[1765201168584,0.28826901,91612.0,91611.0,0.00639011]
[1765201168766,0.68826901,91612.0,91611.0,0.00639011]
[1765201169279,0.68826839,91612.0,91611.0,0.00039011]
[1765201169706,0.71046438,91612.0,91611.0,0.00039011]
[1765201170274,0.77298737,91612.0,91611.0,0.00039011]
[1765201170475,0.77398737,91612.0,91611.0,0.00039011]
[1765201170676,0.77398737,91612.0,91611.0,0.00639011]
[1765201170865,0.77298737,91612.0,91611.0,0.00039011]
[1765201171062,1.09598737,91612.0,91611.0,0.00039011]
[1765201171302,1.09998737,91612.0,91611.0,0.00639011]
[1765201171619,1.09998737,91612.0,91611.0,0.00139011]
[1765201171765,1.09698737,91612.0,91611.0,0.00039011]
[1765201172215,1.10098737,91612.0,91611.0,0.00139011]
[1765201172577,1.10298737,91612.0,91611.0,0.00139011]
[1765201173419,1.10235814,91612.0,91611.0,0.00039011]
[1765201173644,1.12259814,91612.0,91611.0,0.00139011]
[1765201173991,1.12559814,91612.0,91611.0,0.00139011]
[1765201176173,1.23407742,91612.0,91611.0,0.00139011]
[1765201177609,0.3030572,91601.0,91600.0,0.00216927]
[1765201177845,0.32068659,91601.0,91600.0,0.00216927]
[1765201178227,0.32068659,91601.0,91600.0,0.00240282]
[1765201178447,0.72068659,91601.0,91600.0,0.00240282]
[1765201178848,1.04368659,91601.0,91600.0,0.00240282]
[1765201179265,1.0214906,91601.0,91600.0,0.00240282]
[1765201179578,1.0042506,91601.0,91600.0,0.00240282]
[1765201179741,1.0234906,91601.0,91600.0,0.00240282]
[1765201179952,0.96096761,91601.0,91600.0,0.02019282]
[1765201180161,0.63796761,91601.0,91600.0,0.05224282]
[1765201180559,0.22072761,91601.0,91600.0,0.05224282]
[1765201181063,0.00238939,91601.0,91600.0,0.05385569]
[1765201182933,0.00038939,91601.0,91600.0,0.04885569]
[1765201183089,0.00038939,91601.0,91600.0,0.05485569]
[1765201183289,0.00138939,91601.0,91600.0,0.05485569]
[1765201183696,0.00038939,91601.0,91600.0,0.04885569]
[1765201183881,0.00038939,91601.0,91600.0,0.05785569]
[1765201184088,0.00138939,91601.0,91600.0,0.05985569]
[1765201186198,0.21972761,91601.0,91600.0,0.05985569]
[1765201187247,0.00138939,91601.0,91600.0,0.05985569]
[1765201188789,0.21972761,91601.0,91600.0,0.05985569]
[1765201189341,0.00138939,91601.0,91600.0,0.05985569]
[1765201189680,0.00138939,91601.0,91600.0,0.2781963]
[1765201191131,0.00138939,91601.0,91600.0,0.06034569]
[1765201191361,0.21972761,91601.0,91600.0,0.03280569]
[1765201191588,0.21972761,91601.0,91600.0,0.03177766]
[1765201191794,0.21972761,91601.0,91600.0,0.05931766]
[1765201192838,0.21972761,91601.0,91600.0,0.01237479]
[1765201193029,0.27951054,91601.0,91600.0,0.01237479]
[1765201193555,0.27951054,91601.0,91600.0,0.03076479]
[1765201194050,0.27851054,91601.0,91600.0,0.02876479]
[1765201194252,0.27851054,91601.0,91600.0,0.00137479]
[1765201194627,0.27851054,91601.0,91600.0,0.00737479]
[1765201194948,0.27851054,91601.0,91600.0,0.00137479]
[1765201195390,0.27851054,91601.0,91600.0,0.00237479]
[1765201195543,0.27851054,91601.0,91600.0,0.00737479]
[1765201195712,0.27851054,91601.0,91600.0,0.00637479]
[1765201196167,0.27851054,91601.0,91600.0,0.00737479]
[1765201196372,0.27851054,91601.0,91600.0,0.02576479]
[1765201196707,0.27851054,91601.0,91600.0,0.05330479]
[1765201196896,0.21872761,91601.0,91600.0,0.05491766]
[1765201198353,0.21872761,91601.0,91600.0,0.29544715]
[1765201198354,0.00038939,91601.0,91600.0,0.29544715]
[1765201199304,0.00038939,91601.0,91600.0,0.05491766]
[1765201199485,0.21872761,91601.0,91600.0,0.05491766]
[1765201199882,0.21872761,91601.0,91600.0,0.00898766]
[1765201200171,0.21872761,91601.0,91600.0,0.00737479]
[1765201200172,0.30070653,91601.0,91600.0,0.00737479]
[1765201200579,0.31087135,91601.0,91600.0,0.00737479]
[1765201201178,0.31087135,91601.0,91600.0,0.00637479]
[1765201201179,0.63387135,91601.0,91600.0,0.00637479]
[1765201201377,0.63387135,91601.0,91600.0,0.00137479]
[1765201201611,0.63387135,91601.0,91600.0,0.00237479]
[1765201201812,0.63387135,91601.0,91600.0,0.00737479]
[1765201202215,0.63387135,91601.0,91600.0,0.00637479]
[1765201202418,0.63787135,91601.0,91600.0,0.00737479]
[1765201202767,0.70039434,91601.0,91600.0,0.00737479]
[1765201203027,1.10039434,91601.0,91600.0,0.00737479]
[1765201203238,1.09639434,91601.0,91600.0,0.00137479]
[1765201203639,1.09939434,91601.0,91600.0,0.00137479]
[1765201204081,1.09639434,91601.0,91600.0,0.00137479]
[1765201204293,1.10039434,91601.0,91600.0,0.00137479]
[1765201204471,1.10539434,91601.0,91600.0,0.00237479]
[1765201205937,1.08319835,91601.0,91600.0,0.00237479]
[1765201206136,1.10539434,91601.0,91600.0,0.00237479]
[1765201207800,1.12263434,91601.0,91600.0,0.00237479]
[1765201209226,1.12263434,91601.0,91598.0,4.004e-05]
[1765201209227,0.62606197,91599.0,91598.0,4.004e-05]
[1765201209430,0.74470607,91599.0,91598.0,4.004e-05]
[1765201210482,0.75170607,91599.0,91598.0,4.004e-05]
[1765201210657,0.76894607,91599.0,91598.0,4.004e-05]
[1765201211012,0.77831799,91599.0,91598.0,4.004e-05]
[1765201212991,1.17831799,91599.0,91598.0,4.004e-05]
[1765201214092,1.05259871,91599.0,91598.0,4.004e-05]
[1765201214296,1.06983871,91599.0,91598.0,4.004e-05]
[1765201214714,1.06963871,91599.0,91598.0,4.004e-05]
[1765201215045,1.05239871,91599.0,91598.0,4.004e-05]
[1765201215182,0.62607627,91593.0,91592.0,0.00036919]
[1765201215390,0.63624109,91593.0,91592.0,0.00036919]
[1765201215615,0.63604109,91593.0,91592.0,0.00036919]
[1765201215793,0.65084886,91593.0,91592.0,0.00016919]
[1765201215988,1.05084886,91593.0,91592.0,0.00016919]
[1765201216188,1.05064886,91593.0,91592.0,0.00016919]
[1765201216618,1.05064886,91593.0,91576.0,0.00099777]
[1765201216619,0.24058189,91581.0,91580.0,0.00016919]
[1765201216900,0.25762189,91581.0,91580.0,0.00016919]
[1765201217328,0.25762189,91581.0,91580.0,0.00031964]
[1765201217907,0.31740482,91581.0,91580.0,0.00031964]
[1765201218497,0.31840482,91581.0,91580.0,0.00031964]
[1765201218710,0.30116482,91581.0,91580.0,0.00031964]
[1765201218861,0.31840482,91581.0,91580.0,0.00031964]
[1765201219067,0.31840482,91581.0,91580.0,0.00431964]
[1765201219263,0.38092781,91581.0,91580.0,0.00431964]
[1765201219476,0.78092781,91581.0,91580.0,0.00431964]
[1765201221351,0.76368781,91581.0,91580.0,0.00431964]
[1765201221580,0.70116482,91581.0,91580.0,0.00431964]
[1765201221793,0.71840482,91581.0,91580.0,0.00431964]
[1765201223575,0.70116482,91581.0,91580.0,0.00431964]
[1765201223776,0.71840482,91581.0,91580.0,0.00431964]
[1765201224199,0.72854984,91581.0,91580.0,0.00431964]
[1765201224770,0.68911385,91581.0,91580.0,0.00431964]
[1765201224971,0.70635385,91581.0,91580.0,0.00431964]
[1765201225385,0.69620883,91581.0,91580.0,0.00431964]
[1765201225586,0.67896883,91581.0,91580.0,0.00431964]
[1765201225811,0.69620883,91581.0,91580.0,0.00431964]
[1765201226327,0.69600883,91581.0,91580.0,0.00431964]
[1765201226471,0.69600883,91581.0,91580.0,0.00411964]
[1765201227111,0.21839544,91577.0,91576.0,0.00099777]
[1765201227316,0.2809566,91561.0,91560.0,0.0002]
[1765201227521,0.33054208,91561.0,91560.0,0.0002]
[1765201227727,0.40766036,91561.0,91560.0,0.0002]
[1765201227929,0.69802362,91561.0,91560.0,0.0002]
[1765201228135,0.73749961,91561.0,91560.0,0.0002]
[1765201228566,0.74068876,91561.0,91560.0,0.0002]
[1765201228786,0.74068876,91561.0,91529.0,0.01381]
[1765201228787,0.62616452,91556.0,91529.0,0.01381]
[1765201229003,0.60398046,91551.0,91550.0,1e-08]
[1765201229197,0.28084968,91522.0,91521.0,0.00013004]
[1765201229393,1.03126688,91522.0,91521.0,0.00013004]
[1765201229688,0.40771898,91521.0,91520.0,0.01463073]
[1765201229843,0.39566019,91521.0,91520.0,0.01463073]
[1765201230017,0.41765618,91521.0,91520.0,0.01463073]
[1765201230215,0.40751898,91521.0,91520.0,0.01443073]
[1765201230523,0.81803309,91521.0,91520.0,0.01443073]
[1765201230729,0.8029919,91521.0,91520.0,0.01443073]
[1765201230937,0.7857119,91521.0,91520.0,0.01443073]
[1765201231254,0.82918789,91521.0,91520.0,0.01443073]
[1765201232342,2.60409983,91501.0,91430.0,0.0588647]
[1765201232563,0.0109286,91503.0,91409.0,0.27766049]
[1765201232564,1.483748,91427.0,91409.0,0.27766049]
[1765201232787,0.01093756,91428.0,91422.0,0.01381]
[1765201232967,0.01093768,91427.0,91422.0,0.01542287]
[1765201233171,0.21875035,91429.0,91427.0,0.02204596]
[1765201233365,0.01093708,91432.0,91428.0,0.04570287]
[1765201233616,0.22967535,91434.0,91431.0,0.00161287]
[1765201233814,0.01093697,91433.0,91429.0,0.01093744]
[1765201234016,0.00038819,91434.0,91433.0,0.01757]
[1765201234900,0.00018819,91434.0,91433.0,0.01757]
[1765201235314,0.00018819,91434.0,91433.0,0.01737]
[1765201235970,0.00118819,91434.0,91433.0,0.05489]
[1765201236203,0.00118819,91434.0,91433.0,0.04389]
[1765201236204,0.00018819,91434.0,91433.0,0.04389]
[1765201236467,0.00018819,91434.0,91426.0,0.21875527]
[1765201236468,0.01094546,91362.0,91356.0,4.012e-05]
[1765201236721,0.01094439,91371.0,91356.0,4.012e-05]
[1765201236722,0.00199998,91380.0,91357.0,0.04033]
[1765201236935,0.00099999,91390.0,91379.0,0.02851343]
[1765201237212,0.00099999,91390.0,91383.0,0.01757]
[1765201237460,0.00099999,91390.0,91389.0,0.01757]
[1765201237672,0.01093996,91408.0,91400.0,0.01094091]
[1765201237895,0.00099999,91420.0,91398.0,0.01094115]
[1765201237896,0.03284829,91426.0,91419.0,0.03138]
[1765201238118,0.009,91434.0,91433.0,0.03138]
[1765201238334,0.00938807,91434.0,91433.0,0.03138]
[1765201238554,0.00938807,91434.0,91433.0,0.0579]
[1765201238768,0.00038807,91434.0,91433.0,0.0579]
[1765201239595,0.00038807,91434.0,91433.0,0.0529]
[1765201239984,0.00138807,91434.0,91433.0,0.0529]
[1765201240547,0.00200094,91434.0,91433.0,0.01381]
[1765201240755,0.00300094,91434.0,91433.0,0.01381]
[1765201241201,0.00138807,91434.0,91433.0,0.03638]
[1765201241412,0.00138807,91434.0,91433.0,0.0629]
[1765201241798,0.00018807,91434.0,91433.0,0.0629]
[1765201242240,0.01093637,91438.0,91435.0,0.06317]
[1765201242459,0.28913682,91520.0,91435.0,0.06317]
[1765201242460,0.0109341,91457.0,91451.0,0.21869542]
[1765201242690,0.43724836,91482.0,91447.0,0.01093529]
[1765201242691,0.00099999,91470.0,91468.0,0.01093278]
[1765201242911,0.01093135,91480.0,91477.0,0.0109317]
[1765201243118,0.01093135,91480.0,91475.0,0.22957091]
[1765201243119,0.22954843,91484.0,91476.0,0.01093182]
[1765201243328,0.2194038,91481.0,91480.0,0.06317]
[1765201243536,0.01093111,91482.0,91478.0,0.01093159]
[1765201243749,0.01093147,91479.0,91476.0,0.02745]
[1765201243962,0.01093147,91479.0,91478.0,0.00011699]
[1765201244407,0.01093147,91479.0,91478.0,0.09073699]
[1765201244617,0.01093111,91482.0,91478.0,0.09073699]
[1765201244842,0.21862941,91479.0,91478.0,0.00011699]
[1765201245047,0.2186293,91480.0,91478.0,0.00011699]
[1765201245466,0.2186293,91480.0,91479.0,0.10437]
[1765201245973,0.22955586,91481.0,91479.0,0.10437]
[1765201246187,0.22955586,91481.0,91478.0,0.00011699]
[1765201246188,0.21862941,91479.0,91478.0,0.00011699]
[1765201246697,0.2408254,91479.0,91478.0,0.00011699]
[1765201247100,0.21865092,91470.0,91469.0,0.01366699]
[1765201247310,0.21865092,91470.0,91469.0,0.01378361]
[1765201248100,0.01093111,91482.0,91469.0,0.10440361]
[1765201248304,0.01093039,91488.0,91481.0,0.21862253]
[1765201248517,0.01093051,91487.0,91483.0,0.01093099]
[1765201248717,0.01093063,91486.0,91482.0,0.03838111]
[1765201248919,0.01093003,91491.0,91486.0,0.06317]
[1765201249237,0.01073015,91490.0,91489.0,0.06317]
[1765201249417,0.01073015,91490.0,91486.0,0.01093063]
[1765201249616,0.01093039,91488.0,91483.0,0.01093099]
[1765201249934,0.01073015,91490.0,91489.0,0.06317]
[1765201250136,0.23114174,91492.0,91489.0,0.06317]
[1765201250340,0.23114174,91492.0,91482.0,0.21862185]
[1765201250341,0.22951509,91498.0,91493.0,0.01092979]
[1765201250668,0.01092908,91499.0,91495.0,0.01092955]
[1765201250864,0.01092884,91501.0,91498.0,0.07692]
[1765201251075,0.22948753,91509.0,91502.0,0.01092872]
[1765201251203,0.01092717,91515.0,91511.0,0.01092764]
[1765201251403,0.01092705,91516.0,91511.0,0.01092764]
[1765201251640,0.01192656,91520.0,91516.0,0.01092705]
[1765201251641,0.01092657,91520.0,91516.0,0.01092705]
[1765201251855,0.01092669,91519.0,91516.0,0.01092705]